[Event "Early-Titled-Tuesday-Blitz-October-17-2023"]
[Site "Chess.com"]
[Date "2023.10.17"]
[Round "9"]
[White "wqws"]
[Black "ChainedDowntohell"]
[Result "0-1"]
[WhiteElo "2627"]
[BlackElo "2491"]
[TimeControl "180+1"]
[EndTime "9:47:33 PDT"]
[Termination "ChainedDowntohell won by resignation"]

1. e4 {[%clk 0:03:00.1]} 1... c5 {[%clk 0:02:59.2]} 2. Nf3 {[%clk 0:02:59.4]}
2... d6 {[%clk 0:02:58.7]} 3. d4 {[%clk 0:02:59.8]} 3... cxd4 {[%clk 0:02:59.6]}
4. Nxd4 {[%clk 0:03:00.7]} 4... Nf6 {[%clk 0:02:59.2]} 5. Nc3 {[%clk 0:02:59.6]}
5... Bd7 {[%clk 0:02:59]} 6. Bc4 {[%clk 0:02:58.2]} 6... Nc6 {[%clk 0:02:54.6]}
7. O-O {[%clk 0:02:58.6]} 7... e6 {[%clk 0:02:47.5]} 8. Ndb5 {[%clk 0:02:55.4]}
8... Ne5 {[%clk 0:02:45.8]} 9. Be2 {[%clk 0:02:52.4]} 9... Bc6 {[%clk
0:02:39.2]} 10. f4 {[%clk 0:02:47.3]} 10... Ng6 {[%clk 0:02:38.7]} 11. Bf3
{[%clk 0:02:37.8]} 11... Be7 {[%clk 0:02:13.6]} 12. Be3 {[%clk 0:02:35.9]} 12...
a6 {[%clk 0:01:56.6]} 13. Nd4 {[%clk 0:02:35.4]} 13... O-O {[%clk 0:01:54.3]}
14. g3 {[%clk 0:02:30.4]} 14... Qc7 {[%clk 0:01:53.7]} 15. h4 {[%clk 0:02:30.3]}
15... Rfe8 {[%clk 0:01:50.4]} 16. h5 {[%clk 0:02:30.1]} 16... Nf8 {[%clk
0:01:49.5]} 17. h6 {[%clk 0:02:30.6]} 17... g6 {[%clk 0:01:47]} 18. a4 {[%clk
0:02:23.5]} 18... Rad8 {[%clk 0:01:42.7]} 19. a5 {[%clk 0:02:23.4]} 19... N8d7
{[%clk 0:01:41.7]} 20. Qe2 {[%clk 0:02:21.9]} 20... Bf8 {[%clk 0:01:38.3]} 21.
g4 {[%clk 0:02:18.3]} 21... e5 {[%clk 0:01:32.6]} 22. Nxc6 {[%clk 0:02:13.3]}
22... Qxc6 {[%clk 0:01:30.3]} 23. f5 {[%clk 0:02:10.9]} 23... gxf5 {[%clk
0:01:27]} 24. exf5 {[%clk 0:02:03.9]} 24... e4 {[%clk 0:01:24.2]} 25. Bg2 {[%clk
0:02:04.3]} 25... Ne5 {[%clk 0:00:50.5]} 26. g5 {[%clk 0:02:02.2]} 26... Nfg4
{[%clk 0:00:50.3]} 27. Bb6 {[%clk 0:01:59.7]} 27... d5 {[%clk 0:00:49.2]} 28.
Bxd8 {[%clk 0:01:53.8]} 28... Rxd8 {[%clk 0:00:47.6]} 29. Rad1 {[%clk
0:01:52.3]} 29... Bc5+ {[%clk 0:00:29.6]} 30. Kh1 {[%clk 0:01:52.1]} 30... Rd6
{[%clk 0:00:24.9]} 31. Rf4 {[%clk 0:00:34.5]} 31... Rxh6+ {[%clk 0:00:22.7]} 0-1

[Event "Early-Titled-Tuesday-Blitz-October-17-2023"]
[Site "Chess.com"]
[Date "2023.10.17"]
[Round "9"]
[White "bescmelasti"]
[Black "andrzej"]
[Result "1-0"]
[WhiteElo "2622"]
[BlackElo "2489"]
[TimeControl "180+1"]
[EndTime "9:47:38 PDT"]
[Termination "bescmelasti won by resignation"]

1. e4 {[%clk 0:03:00.9]} 1... e5 {[%clk 0:03:00]} 2. Nf3 {[%clk 0:03:00.7]} 2...
Nf6 {[%clk 0:03:00.6]} 3. Nxe5 {[%clk 0:03:00.5]} 3... d6 {[%clk 0:03:01.3]} 4.
Nf3 {[%clk 0:03:01.3]} 4... Nxe4 {[%clk 0:03:01.9]} 5. d4 {[%clk 0:03:02.2]}
5... d5 {[%clk 0:03:01.8]} 6. Bd3 {[%clk 0:03:03.1]} 6... Be7 {[%clk 0:03:02.2]}
7. O-O {[%clk 0:03:03.7]} 7... Bf5 {[%clk 0:03:02.7]} 8. Nbd2 {[%clk 0:03:00.4]}
8... O-O {[%clk 0:02:56.8]} 9. Re1 {[%clk 0:03:00.6]} 9... Nd6 {[%clk
0:02:55.3]} 10. Nf1 {[%clk 0:02:58.4]} 10... Bxd3 {[%clk 0:02:54]} 11. Qxd3
{[%clk 0:02:58.4]} 11... c6 {[%clk 0:02:54.3]} 12. Bf4 {[%clk 0:02:55.7]} 12...
Na6 {[%clk 0:02:54.1]} 13. Ng3 {[%clk 0:02:53.1]} 13... Nc7 {[%clk 0:02:53.9]}
14. a4 {[%clk 0:02:51]} 14... Ne6 {[%clk 0:02:46.3]} 15. Bd2 {[%clk 0:02:46.3]}
15... Qc7 {[%clk 0:02:27.7]} 16. a5 {[%clk 0:02:35.8]} 16... Rae8 {[%clk
0:02:26.4]} 17. b3 {[%clk 0:02:32.5]} 17... a6 {[%clk 0:02:20.8]} 18. c4 {[%clk
0:02:30.1]} 18... dxc4 {[%clk 0:02:04.2]} 19. bxc4 {[%clk 0:02:29.1]} 19... Rd8
{[%clk 0:02:04.8]} 20. Rab1 {[%clk 0:02:18.7]} 20... Nc8 {[%clk 0:01:47.7]} 21.
Nf5 {[%clk 0:02:14.6]} 21... Bf6 {[%clk 0:01:45.1]} 22. d5 {[%clk 0:01:31.6]}
22... Nc5 {[%clk 0:01:38.9]} 23. Qa3 {[%clk 0:01:31.8]} 23... cxd5 {[%clk
0:01:38.2]} 24. Bb4 {[%clk 0:01:32.1]} 24... Ne4 {[%clk 0:01:11.6]} 25. Bxf8
{[%clk 0:01:31]} 25... Rxf8 {[%clk 0:01:11.8]} 26. cxd5 {[%clk 0:01:29.1]} 26...
Nc3 {[%clk 0:01:09.3]} 27. Rbc1 {[%clk 0:01:24.6]} 27... Qf4 {[%clk 0:00:56.5]}
28. Ne3 {[%clk 0:01:16.7]} 28... Ne4 {[%clk 0:00:46.5]} 29. Qb4 {[%clk
0:01:06.6]} 29... Ncd6 {[%clk 0:00:44]} 30. Nc4 {[%clk 0:01:02.4]} 30... Nxf2
{[%clk 0:00:20.4]} 31. Qxd6 {[%clk 0:00:55.4]} 31... Qxd6 {[%clk 0:00:20.4]} 32.
Nxd6 {[%clk 0:00:55.3]} 32... Nd3 {[%clk 0:00:21.1]} 33. Nxb7 {[%clk 0:00:52.7]}
33... Nxc1 {[%clk 0:00:17.8]} 34. Rxc1 {[%clk 0:00:52.7]} 34... Rb8 {[%clk
0:00:17.8]} 35. d6 {[%clk 0:00:51.8]} 35... g5 {[%clk 0:00:15.7]} 36. Rc7 {[%clk
0:00:50.8]} 36... Bc3 {[%clk 0:00:14.4]} 37. d7 {[%clk 0:00:49.9]} 37... Bf6
{[%clk 0:00:13.1]} 38. Rc8+ {[%clk 0:00:50]} 1-0

[Event "Early-Titled-Tuesday-Blitz-October-17-2023"]
[Site "Chess.com"]
[Date "2023.10.17"]
[Round "9"]
[White "AnaKuchava"]
[Black "beccrajoy"]
[Result "1-0"]
[WhiteElo "2237"]
[BlackElo "1997"]
[TimeControl "180+1"]
[EndTime "9:47:38 PDT"]
[Termination "AnaKuchava won by checkmate"]

1. d4 {[%clk 0:03:00.9]} 1... d5 {[%clk 0:02:52.7]} 2. Nf3 {[%clk 0:03:00.3]}
2... Nf6 {[%clk 0:02:51.9]} 3. c4 {[%clk 0:02:59.5]} 3... c6 {[%clk 0:02:52.3]}
4. Qb3 {[%clk 0:02:56.7]} 4... Qb6 {[%clk 0:02:51.7]} 5. c5 {[%clk 0:02:56.3]}
5... Qxb3 {[%clk 0:02:49.2]} 6. axb3 {[%clk 0:02:57.2]} 6... Nbd7 {[%clk
0:02:48.2]} 7. b4 {[%clk 0:02:52.1]} 7... g6 {[%clk 0:02:43.9]} 8. Nc3 {[%clk
0:02:51]} 8... Bg7 {[%clk 0:02:43.5]} 9. Bf4 {[%clk 0:02:38.6]} 9... O-O {[%clk
0:02:43.6]} 10. b5 {[%clk 0:02:25.5]} 10... Nh5 {[%clk 0:02:43.1]} 11. Bc7
{[%clk 0:02:24.1]} 11... e5 {[%clk 0:02:37.4]} 12. bxc6 {[%clk 0:02:15.6]} 12...
bxc6 {[%clk 0:02:36.9]} 13. e3 {[%clk 0:02:15.5]} 13... e4 {[%clk 0:02:17.2]}
14. Nd2 {[%clk 0:02:13]} 14... f5 {[%clk 0:02:09.3]} 15. Bd6 {[%clk 0:01:56.6]}
15... Rf7 {[%clk 0:02:02.5]} 16. Ba6 {[%clk 0:01:55.8]} 16... Bxa6 {[%clk
0:01:47.2]} 17. Rxa6 {[%clk 0:01:56.7]} 17... Nb8 {[%clk 0:01:47.5]} 18. Bxb8
{[%clk 0:01:39.9]} 18... Rxb8 {[%clk 0:01:48.4]} 19. Rxc6 {[%clk 0:01:40.2]}
19... Rxb2 {[%clk 0:01:46.7]} 20. Nxd5 {[%clk 0:01:33.5]} 20... f4 {[%clk
0:01:42.1]} 21. Nxe4 {[%clk 0:01:25.1]} 21... fxe3 {[%clk 0:01:40.8]} 22. Rc8+
{[%clk 0:01:06.4]} 22... Bf8 {[%clk 0:01:38.4]} 23. Nxe3 {[%clk 0:01:02.9]}
23... Nf4 {[%clk 0:01:30.6]} 24. O-O {[%clk 0:00:58.3]} 24... Ne2+ {[%clk
0:01:24.7]} 25. Kh1 {[%clk 0:00:58.3]} 25... Nxd4 {[%clk 0:01:24.9]} 26. Ng4
{[%clk 0:00:40.4]} 26... Kg7 {[%clk 0:01:17.7]} 27. Ne5 {[%clk 0:00:32.6]} 27...
Rf4 {[%clk 0:01:01.7]} 28. f3 {[%clk 0:00:30.1]} 28... Rf5 {[%clk 0:00:56.2]}
29. Nd3 {[%clk 0:00:24.3]} 29... Rb3 {[%clk 0:00:48.4]} 30. Rc7+ {[%clk
0:00:23.9]} 30... Kh6 {[%clk 0:00:45.8]} 31. Ndf2 {[%clk 0:00:21.6]} 31... Ne6
{[%clk 0:00:32.7]} 32. Ng4+ {[%clk 0:00:21.1]} 32... Kh5 {[%clk 0:00:28.8]} 33.
Rxh7+ {[%clk 0:00:21.1]} 33... Bh6 {[%clk 0:00:27.9]} 34. Rxh6# {[%clk
0:00:21.4]} 1-0

[Event "Early-Titled-Tuesday-Blitz-October-17-2023"]
[Site "Chess.com"]
[Date "2023.10.17"]
[Round "9"]
[White "Arash_Tahbaz"]
[Black "stratacticos"]
[Result "1-0"]
[WhiteElo "2906"]
[BlackElo "1716"]
[TimeControl "180+1"]
[EndTime "9:47:40 PDT"]
[Termination "Arash_Tahbaz won by checkmate"]

1. Nf3 {[%clk 0:03:00.9]} 1... c5 {[%clk 0:02:58.7]} 2. c4 {[%clk 0:03:00.1]}
2... Nc6 {[%clk 0:02:57.8]} 3. Nc3 {[%clk 0:02:58.4]} 3... g6 {[%clk 0:02:56.5]}
4. h4 {[%clk 0:02:54.8]} 4... h5 {[%clk 0:02:55.6]} 5. g3 {[%clk 0:02:54.4]}
5... Bg7 {[%clk 0:02:55.1]} 6. Bg2 {[%clk 0:02:55.3]} 6... d6 {[%clk 0:02:54]}
7. d3 {[%clk 0:02:55.8]} 7... Nf6 {[%clk 0:02:53.2]} 8. Bd2 {[%clk 0:02:54.5]}
8... Bg4 {[%clk 0:02:46]} 9. a3 {[%clk 0:02:53.5]} 9... Qd7 {[%clk 0:02:39.6]}
10. Rb1 {[%clk 0:02:47.2]} 10... a5 {[%clk 0:02:36.4]} 11. Na4 {[%clk 0:02:41]}
11... Ra6 {[%clk 0:02:26.3]} 12. O-O {[%clk 0:02:40.1]} 12... O-O {[%clk
0:02:24.9]} 13. b4 {[%clk 0:02:06.7]} 13... axb4 {[%clk 0:02:19.7]} 14. axb4
{[%clk 0:02:07.3]} 14... Nxb4 {[%clk 0:02:18.4]} 15. Nc3 {[%clk 0:02:05.9]}
15... Nc6 {[%clk 0:02:05.8]} 16. Rb2 {[%clk 0:01:39.8]} 16... Nb4 {[%clk
0:02:03.1]} 17. Qb1 {[%clk 0:01:31.8]} 17... Ra7 {[%clk 0:01:56.7]} 18. Nh2
{[%clk 0:01:29.9]} 18... Bh3 {[%clk 0:01:44.6]} 19. Nb5 {[%clk 0:01:29.8]} 19...
Bxg2 {[%clk 0:01:34]} 20. Kxg2 {[%clk 0:01:30.7]} 20... Qc6+ {[%clk 0:01:25]}
21. Nf3 {[%clk 0:01:30.1]} 21... Ra4 {[%clk 0:01:12.9]} 22. Bxb4 {[%clk
0:01:28.9]} 22... Rxb4 {[%clk 0:01:11.6]} 23. Rxb4 {[%clk 0:01:29.7]} 23... cxb4
{[%clk 0:01:11.4]} 24. Qxb4 {[%clk 0:01:30.6]} 24... Ra8 {[%clk 0:01:03]} 25.
Rb1 {[%clk 0:01:23.5]} 25... Ng4 {[%clk 0:01:01.3]} 26. e4 {[%clk 0:01:19.5]}
26... f5 {[%clk 0:00:55.3]} 27. Nbd4 {[%clk 0:01:16.3]} 27... Qc5 {[%clk
0:00:40.9]} 28. Qxc5 {[%clk 0:01:06.8]} 28... dxc5 {[%clk 0:00:40.5]} 29. Ne2
{[%clk 0:01:06.4]} 29... Ra2 {[%clk 0:00:39.1]} 30. Kf1 {[%clk 0:01:06.5]} 30...
fxe4 {[%clk 0:00:36.4]} 31. dxe4 {[%clk 0:01:07.4]} 31... Rb2 {[%clk 0:00:28.4]}
32. Rd1 {[%clk 0:01:02.9]} 32... b5 {[%clk 0:00:25.5]} 33. Rd8+ {[%clk 0:01:01]}
33... Kf7 {[%clk 0:00:25]} 34. Ng5+ {[%clk 0:01:01.5]} 34... Kf6 {[%clk
0:00:22.1]} 35. cxb5 {[%clk 0:00:47.2]} 35... Rxb5 {[%clk 0:00:17]} 36. Nc3
{[%clk 0:00:46.2]} 36... e5 {[%clk 0:00:13.2]} 37. Nd5# {[%clk 0:00:44.4]} 1-0

[Event "Early-Titled-Tuesday-Blitz-October-17-2023"]
[Site "Chess.com"]
[Date "2023.10.17"]
[Round "9"]
[White "scarabee43"]
[Black "YouJustFoundYourGodfather"]
[Result "1-0"]
[WhiteElo "2802"]
[BlackElo "2634"]
[TimeControl "180+1"]
[EndTime "9:47:42 PDT"]
[Termination "scarabee43 won by resignation"]

1. Nf3 {[%clk 0:03:00.9]} 1... g6 {[%clk 0:02:54]} 2. d4 {[%clk 0:03:00.3]} 2...
Bg7 {[%clk 0:02:54.9]} 3. c4 {[%clk 0:02:59.8]} 3... d6 {[%clk 0:02:55.5]} 4.
Nc3 {[%clk 0:03:00]} 4... Nc6 {[%clk 0:02:55.9]} 5. d5 {[%clk 0:02:59.3]} 5...
Ne5 {[%clk 0:02:55.6]} 6. Nxe5 {[%clk 0:02:57.8]} 6... Bxe5 {[%clk 0:02:56.5]}
7. Qd3 {[%clk 0:02:51.4]} 7... c5 {[%clk 0:02:54.8]} 8. f4 {[%clk 0:02:48.4]}
8... Bg7 {[%clk 0:02:54.8]} 9. e4 {[%clk 0:02:48.7]} 9... Nf6 {[%clk 0:02:52.3]}
10. Be2 {[%clk 0:02:48.7]} 10... a6 {[%clk 0:02:51.3]} 11. a4 {[%clk 0:02:47.7]}
11... O-O {[%clk 0:02:50.2]} 12. O-O {[%clk 0:02:47.5]} 12... e6 {[%clk
0:02:49.2]} 13. h3 {[%clk 0:02:29.7]} 13... exd5 {[%clk 0:02:48.6]} 14. cxd5
{[%clk 0:02:30.1]} 14... Re8 {[%clk 0:02:47.2]} 15. Bf3 {[%clk 0:02:29.9]} 15...
Rb8 {[%clk 0:02:45.4]} 16. a5 {[%clk 0:02:28.5]} 16... b6 {[%clk 0:02:45.6]} 17.
axb6 {[%clk 0:02:28.4]} 17... Qxb6 {[%clk 0:02:45.5]} 18. Kh2 {[%clk 0:02:28.3]}
18... a5 {[%clk 0:02:43]} 19. Re1 {[%clk 0:02:20.8]} 19... Ba6 {[%clk
0:02:42.3]} 20. Qc2 {[%clk 0:02:19.1]} 20... Nd7 {[%clk 0:02:31]} 21. Na4 {[%clk
0:02:09.8]} 21... Qb3 {[%clk 0:02:26.3]} 22. Qxb3 {[%clk 0:02:08.1]} 22... Rxb3
{[%clk 0:02:25.7]} 23. Bd2 {[%clk 0:02:05.6]} 23... Bb5 {[%clk 0:02:13.3]} 24.
Bxa5 {[%clk 0:01:49.1]} 24... Bxa4 {[%clk 0:01:49.7]} 25. Rxa4 {[%clk
0:01:48.1]} 25... Ra8 {[%clk 0:01:42]} 26. Bd1 {[%clk 0:01:40.7]} 26... Rxb2
{[%clk 0:01:40.2]} 27. Bc7 {[%clk 0:01:39.8]} 27... Rxa4 {[%clk 0:01:24.3]} 28.
Bxa4 {[%clk 0:01:39.7]} 28... Nb6 {[%clk 0:01:24.9]} 29. Bc6 {[%clk 0:01:35.6]}
29... Bf8 {[%clk 0:01:19.3]} 30. e5 {[%clk 0:01:35.6]} 30... Nc4 {[%clk
0:01:16]} 31. Rc1 {[%clk 0:01:13.2]} 31... Rb4 {[%clk 0:01:10.1]} 32. Rxc4
{[%clk 0:01:11.8]} 32... Rxc4 {[%clk 0:01:09.6]} 33. exd6 {[%clk 0:01:12.5]}
33... Rd4 {[%clk 0:00:51.1]} 34. d7 {[%clk 0:01:11.1]} 34... Be7 {[%clk
0:00:51.2]} 35. d8=Q+ {[%clk 0:01:09.9]} 35... Bxd8 {[%clk 0:00:51.3]} 36. Bxd8
{[%clk 0:01:10.7]} 36... c4 {[%clk 0:00:51.1]} 37. Bf6 {[%clk 0:01:10.1]} 37...
Rxf4 {[%clk 0:00:50.6]} 38. Be5 {[%clk 0:01:07.6]} 38... Rf2 {[%clk 0:00:30.8]}
39. d6 {[%clk 0:01:07.3]} 39... Rd2 {[%clk 0:00:26.3]} 40. d7 {[%clk 0:01:05.9]}
40... Kf8 {[%clk 0:00:19.6]} 41. Bf6 {[%clk 0:01:05.7]} 41... c3 {[%clk
0:00:17.9]} 42. d8=Q+ {[%clk 0:01:04.8]} 42... Rxd8 {[%clk 0:00:18]} 43. Bxd8
{[%clk 0:01:05.5]} 43... c2 {[%clk 0:00:18.3]} 44. Bg5 {[%clk 0:01:06.1]} 44...
f6 {[%clk 0:00:17.6]} 45. Bd2 {[%clk 0:01:05.2]} 45... Ke7 {[%clk 0:00:18]} 46.
Be4 {[%clk 0:01:05.4]} 46... Kd6 {[%clk 0:00:18.5]} 47. Bxc2 {[%clk 0:01:05.7]}
47... Ke5 {[%clk 0:00:19.1]} 48. Kg3 {[%clk 0:01:06.2]} 48... Kd4 {[%clk
0:00:19.2]} 49. Kf3 {[%clk 0:01:06.2]} 49... f5 {[%clk 0:00:19.7]} 50. Kf4
{[%clk 0:01:06.6]} 50... Kd5 {[%clk 0:00:18]} 51. Kg5 {[%clk 0:01:07]} 1-0

[Event "Early-Titled-Tuesday-Blitz-October-17-2023"]
[Site "Chess.com"]
[Date "2023.10.17"]
[Round "9"]
[White "N4700000"]
[Black "K_A_S_T_O_R"]
[Result "0-1"]
[WhiteElo "2543"]
[BlackElo "2875"]
[TimeControl "180+1"]
[EndTime "9:47:44 PDT"]
[Termination "K_A_S_T_O_R won by resignation"]

1. f4 {[%clk 0:02:55.6]} 1... d5 {[%clk 0:02:59.1]} 2. g3 {[%clk 0:02:48]} 2...
Nh6 {[%clk 0:02:57.8]} 3. Nf3 {[%clk 0:02:48.1]} 3... g6 {[%clk 0:02:57.5]} 4.
Bg2 {[%clk 0:02:48.3]} 4... Bg7 {[%clk 0:02:57.7]} 5. O-O {[%clk 0:02:49]} 5...
c6 {[%clk 0:02:57.8]} 6. d3 {[%clk 0:02:46.8]} 6... Nf5 {[%clk 0:02:50.2]} 7. c3
{[%clk 0:02:37.4]} 7... Qb6+ {[%clk 0:02:48.1]} 8. d4 {[%clk 0:02:29]} 8... h5
{[%clk 0:02:37]} 9. Qe1 {[%clk 0:02:14.7]} 9... Nd7 {[%clk 0:02:29.1]} 10. e4
{[%clk 0:02:11.7]} 10... dxe4 {[%clk 0:02:29.4]} 11. Qxe4 {[%clk 0:02:12.4]}
11... Nf6 {[%clk 0:02:29]} 12. Qe2 {[%clk 0:02:11.1]} 12... h4 {[%clk
0:02:26.1]} 13. Qe1 {[%clk 0:01:47.1]} 13... hxg3 {[%clk 0:02:24.6]} 14. hxg3
{[%clk 0:01:48]} 14... Be6 {[%clk 0:02:16.6]} 15. Nbd2 {[%clk 0:01:40.1]} 15...
Bd5 {[%clk 0:02:09.3]} 16. Ng5 {[%clk 0:01:27.7]} 16... Ng4 {[%clk 0:01:58.9]}
17. Bxd5 {[%clk 0:01:15.2]} 17... cxd5 {[%clk 0:01:58.8]} 18. Ndf3 {[%clk
0:01:14.7]} 18... f6 {[%clk 0:01:49.6]} 19. Ne6 {[%clk 0:01:11.4]} 19... Kf7
{[%clk 0:01:47.5]} 20. Nc5 {[%clk 0:01:05.8]} 20... Rh3 {[%clk 0:01:42]} 21. Kg2
{[%clk 0:00:43.3]} 21... Rxg3+ {[%clk 0:01:35]} 22. Qxg3 {[%clk 0:00:43.5]}
22... Nxg3 {[%clk 0:01:35.7]} 23. Kxg3 {[%clk 0:00:44.2]} 23... Nh6 {[%clk
0:01:36.3]} 24. a4 {[%clk 0:00:31.2]} 24... Qc6 {[%clk 0:01:29.7]} 25. Bd2
{[%clk 0:00:26.4]} 25... b6 {[%clk 0:01:27.2]} 26. Nd3 {[%clk 0:00:24.4]} 26...
Qc4 {[%clk 0:01:23]} 27. Nb4 {[%clk 0:00:19.1]} 27... a5 {[%clk 0:01:19.8]} 28.
Nc2 {[%clk 0:00:18.7]} 28... Nf5+ {[%clk 0:01:12.4]} 29. Kf2 {[%clk 0:00:17.9]}
29... Rh8 {[%clk 0:01:10.9]} 30. Rh1 {[%clk 0:00:17.1]} 30... Rxh1 {[%clk
0:01:10.1]} 31. Rxh1 {[%clk 0:00:18]} 31... Qxa4 {[%clk 0:01:10.3]} 32. Ne3
{[%clk 0:00:17.6]} 32... Nd6 {[%clk 0:01:07.5]} 33. Ng4 {[%clk 0:00:16.5]} 33...
Qb5 {[%clk 0:01:05.2]} 34. Bc1 {[%clk 0:00:15.2]} 34... Qd3 {[%clk 0:01:04.1]}
35. Re1 {[%clk 0:00:11.8]} 35... Ne4+ {[%clk 0:01:03.8]} 36. Kg2 {[%clk
0:00:11.8]} 36... Qc2+ {[%clk 0:01:01.6]} 37. Kg1 {[%clk 0:00:09.1]} 37... f5
{[%clk 0:01:00.3]} 38. Nge5+ {[%clk 0:00:08.1]} 38... Bxe5 {[%clk 0:01:00.6]}
39. Nxe5+ {[%clk 0:00:09]} 39... Kg7 {[%clk 0:00:58.9]} 40. Be3 {[%clk
0:00:08.3]} 40... Qxb2 {[%clk 0:00:58.3]} 0-1

[Event "Early-Titled-Tuesday-Blitz-October-17-2023"]
[Site "Chess.com"]
[Date "2023.10.17"]
[Round "9"]
[White "kingapolak"]
[Black "rachidhuilda"]
[Result "0-1"]
[WhiteElo "2141"]
[BlackElo "2320"]
[TimeControl "180+1"]
[EndTime "9:47:45 PDT"]
[Termination "rachidhuilda won on time"]

1. e4 {[%clk 0:03:00.9]} 1... c5 {[%clk 0:02:59.4]} 2. Nf3 {[%clk 0:03:00.6]}
2... e6 {[%clk 0:02:59.8]} 3. d3 {[%clk 0:02:56.9]} 3... d5 {[%clk 0:02:54.8]}
4. Nbd2 {[%clk 0:02:56.9]} 4... Nf6 {[%clk 0:02:51.5]} 5. g3 {[%clk 0:02:55.5]}
5... Be7 {[%clk 0:02:45.8]} 6. Bg2 {[%clk 0:02:55.5]} 6... O-O {[%clk
0:02:46.3]} 7. O-O {[%clk 0:02:55.8]} 7... b6 {[%clk 0:02:46.1]} 8. c3 {[%clk
0:02:51]} 8... Bb7 {[%clk 0:02:46.1]} 9. Re1 {[%clk 0:02:50]} 9... Nc6 {[%clk
0:02:34.4]} 10. e5 {[%clk 0:02:44.2]} 10... Nd7 {[%clk 0:02:33.8]} 11. d4 {[%clk
0:02:44.9]} 11... cxd4 {[%clk 0:02:31.5]} 12. cxd4 {[%clk 0:02:45.8]} 12... Rc8
{[%clk 0:02:31.1]} 13. a3 {[%clk 0:02:45.6]} 13... Na5 {[%clk 0:02:23.5]} 14. b3
{[%clk 0:02:41.6]} 14... Ba6 {[%clk 0:02:14.1]} 15. Nf1 {[%clk 0:02:34.5]} 15...
Qc7 {[%clk 0:01:59]} 16. Bd2 {[%clk 0:02:23.6]} 16... Qc2 {[%clk 0:01:54.7]} 17.
Rb1 {[%clk 0:01:58.1]} 17... Qxd1 {[%clk 0:01:53.5]} 18. Rexd1 {[%clk
0:01:57.8]} 18... Bxa3 {[%clk 0:01:37.4]} 19. b4 {[%clk 0:01:51.2]} 19... Nc4
{[%clk 0:01:37.3]} 20. Ra1 {[%clk 0:01:42.8]} 20... Bb5 {[%clk 0:01:30]} 21. Be1
{[%clk 0:01:38.4]} 21... a5 {[%clk 0:01:25.7]} 22. bxa5 {[%clk 0:01:20.9]} 22...
bxa5 {[%clk 0:01:23.4]} 23. Ne3 {[%clk 0:01:18]} 23... Bb4 {[%clk 0:01:19.9]}
24. Nxc4 {[%clk 0:01:13.1]} 24... Bxc4 {[%clk 0:01:18.2]} 25. Nd2 {[%clk
0:01:00.1]} 25... Bc3 {[%clk 0:01:06.5]} 26. Ra3 {[%clk 0:00:50.8]} 26... Bxd4
{[%clk 0:00:59.9]} 27. Rxa5 {[%clk 0:00:28.2]} 27... Bxe5 {[%clk 0:00:54.2]} 28.
Nf3 {[%clk 0:00:12.1]} 28... Bf6 {[%clk 0:00:50.9]} 29. Bb4 {[%clk 0:00:10.2]}
29... Rfe8 {[%clk 0:00:50.6]} 30. Ra7 {[%clk 0:00:09.6]} 30... Ne5 {[%clk
0:00:47]} 31. Nd4 {[%clk 0:00:05.9]} 31... Nd3 {[%clk 0:00:44.5]} 32. Ba5 {[%clk
0:00:01.4]} 32... Bxd4 {[%clk 0:00:41.6]} 0-1

[Event "Early-Titled-Tuesday-Blitz-October-17-2023"]
[Site "Chess.com"]
[Date "2023.10.17"]
[Round "9"]
[White "falzehope0"]
[Black "ploxoi"]
[Result "0-1"]
[WhiteElo "2326"]
[BlackElo "2460"]
[TimeControl "180+1"]
[EndTime "9:47:48 PDT"]
[Termination "ploxoi won by checkmate"]

1. d4 {[%clk 0:03:00.9]} 1... d5 {[%clk 0:02:59.5]} 2. e3 {[%clk 0:03:01.8]}
2... e6 {[%clk 0:02:59.3]} 3. Bd3 {[%clk 0:03:01.9]} 3... Nf6 {[%clk 0:02:59.7]}
4. f4 {[%clk 0:03:00.8]} 4... c5 {[%clk 0:02:50.9]} 5. c3 {[%clk 0:03:00.6]}
5... b6 {[%clk 0:02:50.2]} 6. Nf3 {[%clk 0:03:00.5]} 6... Bd6 {[%clk 0:02:50.5]}
7. O-O {[%clk 0:03:00.3]} 7... O-O {[%clk 0:02:50.6]} 8. Ne5 {[%clk 0:02:58.2]}
8... Ba6 {[%clk 0:02:51.1]} 9. Bxa6 {[%clk 0:02:58.4]} 9... Nxa6 {[%clk
0:02:51.2]} 10. Nd2 {[%clk 0:02:58.9]} 10... Nb8 {[%clk 0:02:50.4]} 11. b3
{[%clk 0:02:59.1]} 11... Qc7 {[%clk 0:02:50.5]} 12. Bb2 {[%clk 0:02:59.4]} 12...
Nc6 {[%clk 0:02:51.1]} 13. g4 {[%clk 0:02:54.6]} 13... Ne7 {[%clk 0:02:48.8]}
14. g5 {[%clk 0:02:54.8]} 14... Ne4 {[%clk 0:02:49.1]} 15. Nxe4 {[%clk
0:02:54.7]} 15... dxe4 {[%clk 0:02:50]} 16. Nc4 {[%clk 0:02:51.4]} 16... Nf5
{[%clk 0:02:45.6]} 17. Qe2 {[%clk 0:02:49.9]} 17... Rfd8 {[%clk 0:02:43.9]} 18.
a4 {[%clk 0:02:45.9]} 18... Rd7 {[%clk 0:02:42.3]} 19. Rfc1 {[%clk 0:02:43.7]}
19... Rad8 {[%clk 0:02:42.1]} 20. Ba3 {[%clk 0:02:42.7]} 20... Qc6 {[%clk
0:02:35.8]} 21. Rab1 {[%clk 0:02:33.5]} 21... a6 {[%clk 0:02:19.9]} 22. Nxd6
{[%clk 0:02:32.7]} 22... Rxd6 {[%clk 0:02:18.9]} 23. Rd1 {[%clk 0:02:26.2]}
23... R6d7 {[%clk 0:02:02.4]} 24. Kf2 {[%clk 0:01:45]} 24... Qc8 {[%clk
0:01:19.4]} 25. Qc4 {[%clk 0:01:38]} 25... cxd4 {[%clk 0:01:14.4]} 26. cxd4
{[%clk 0:01:35.2]} 26... Rc7 {[%clk 0:01:12]} 27. Rbc1 {[%clk 0:01:13.9]} 27...
Rxc4 {[%clk 0:01:11.1]} 28. Rxc4 {[%clk 0:01:14.8]} 28... Qa8 {[%clk 0:01:03.2]}
29. Rdc1 {[%clk 0:01:14.2]} 29... b5 {[%clk 0:01:03.4]} 30. Rc7 {[%clk
0:01:07.5]} 30... bxa4 {[%clk 0:01:02.7]} 31. bxa4 {[%clk 0:01:07.3]} 31... h5
{[%clk 0:00:58.1]} 32. Rb1 {[%clk 0:01:00]} 32... Rxd4 {[%clk 0:00:47.4]} 33.
Rbb7 {[%clk 0:00:56.6]} 33... Rd2+ {[%clk 0:00:42]} 34. Ke1 {[%clk 0:00:55.7]}
34... Qd8 {[%clk 0:00:41.8]} 35. Rc1 {[%clk 0:00:13.4]} 35... Nxe3 {[%clk
0:00:37.8]} 36. Rbc7 {[%clk 0:00:10.5]} 36... Rd1+ {[%clk 0:00:36.3]} 37. Ke2
{[%clk 0:00:09.6]} 37... Qd2# {[%clk 0:00:35.8]} 0-1